{"text_format":"1","workbook":"xlsx","n_sheets":2,"sheets":["ТАБЕЛЬ  И.Б.","И.Б. ИЮЛЬ 2020 "],"not_rendered":{"charts":0,"images":0,"macros":1,"external_links":5,"defined_names":40,"comments":0,"pivot_tables":0},"unopened":[],"bounds":{"document_bytes":16777216,"sheet_cells":100000,"rows_first":2000,"rows_last":500,"rows_between":2000,"halvings":0,"cell_chars":16384,"cell_head_chars":4096},"cells_cut":0,"cells_raw":0,"read":"whole","date_system":"1900"}

{"sheet":"ТАБЕЛЬ  И.Б.","index":0,"n_rows":98,"n_cols":65,"rows_kept":98,"cut":false,"hidden":false,"merged":[[1,0,1,6],[1,44,1,48],[2,2,2,12],[2,24,2,26],[2,27,2,29],[3,0,3,2],[3,38,3,42],[6,4,6,16],[6,17,6,22],[6,23,6,25],[6,38,6,42],[6,43,6,46],[6,48,6,56],[3,51,3,56],[4,0,4,6],[5,8,5,20],[5,38,5,41],[5,44,5,46],[5,48,5,53],[7,17,7,22],[8,0,11,0],[8,1,11,1],[8,2,11,2],[8,3,11,3],[8,4,11,4],[8,5,8,36],[9,11,10,11],[9,12,10,12],[9,13,10,13],[9,34,10,34],[9,35,10,35],[9,36,10,36],[8,38,8,45],[8,46,11,46],[8,47,8,55],[8,56,11,56],[9,5,10,5],[9,6,10,6],[9,7,10,7],[9,8,10,8],[9,9,10,9],[9,10,10,10],[9,20,10,20],[9,21,10,21],[9,22,10,22],[9,23,10,23],[9,24,10,24],[9,25,10,25],[9,14,10,14],[9,15,10,15],[9,16,10,16],[9,17,10,17],[9,18,10,18],[9,19,10,19],[9,32,10,32],[9,33,10,33],[9,37,11,37],[9,26,10,26],[9,27,10,27],[9,28,10,28],[9,29,10,29],[9,30,10,30],[9,31,10,31],[9,51,11,51],[9,52,11,52],[9,53,11,53],[9,54,11,54],[9,55,11,55],[10,39,11,39],[10,40,10,45],[9,38,11,38],[9,39,9,45],[9,47,11,47],[9,48,11,48],[9,49,11,49],[9,50,11,50],[14,49,16,49],[17,54,19,54],[17,55,19,55],[13,5,13,36],[13,46,13,55],[14,2,15,2],[14,37,15,37],[14,38,15,38],[14,39,16,39],[14,40,16,40],[14,41,16,41],[14,42,16,42],[14,43,16,43],[18,2,19,2],[18,37,19,37],[18,38,19,38],[14,56,16,56],[16,2,17,2],[16,37,17,37],[16,38,17,38],[17,39,19,39],[17,40,19,40],[17,41,19,41],[17,42,19,42],[17,43,19,43],[17,44,19,44],[14,50,16,50],[14,51,16,51],[14,52,16,52],[14,53,16,53],[14,54,16,54],[14,55,16,55],[14,44,16,44],[14,45,16,45],[14,46,16,46],[14,47,16,47],[14,48,16,48],[17,51,19,51],[17,52,19,52],[17,53,19,53],[20,49,22,49],[20,50,22,50],[20,51,22,51],[17,56,19,56],[17,45,19,45],[17,46,19,46],[17,47,19,47],[17,48,19,48],[17,49,19,49],[17,50,19,50],[26,38,27,38],[26,39,28,39],[26,40,28,40],[26,41,28,41],[23,54,25,54],[23,55,25,55],[26,54,28,54],[26,55,28,55],[20,2,21,2],[20,37,21,37],[20,38,21,38],[20,39,22,39],[20,40,22,40],[20,41,22,41],[20,42,22,42],[20,43,22,43],[20,44,22,44],[22,38,23,38],[23,39,25,39],[23,40,25,40],[23,41,25,41],[20,45,22,45],[20,46,22,46],[20,47,22,47],[23,56,25,56],[24,2,25,2],[24,37,25,37],[24,38,25,38],[23,48,25,48],[23,49,25,49],[23,50,25,50],[23,51,25,51],[23,52,25,52],[23,53,25,53],[23,42,25,42],[23,43,25,43],[23,44,25,44],[23,45,25,45],[23,46,25,46],[23,47,25,47],[22,2,23,2],[22,37,23,37],[20,52,22,52],[20,53,22,53],[20,54,22,54],[20,55,22,55],[20,56,22,56],[20,48,22,48],[26,56,28,56],[28,2,29,2],[28,37,29,37],[28,38,29,38],[29,39,31,39],[29,40,31,40],[29,41,31,41],[29,42,31,42],[26,48,28,48],[26,49,28,49],[26,50,28,50],[26,51,28,51],[26,52,28,52],[26,53,28,53],[26,42,28,42],[26,43,28,43],[26,44,28,44],[26,45,28,45],[26,46,28,46],[26,47,28,47],[26,2,27,2],[26,37,27,37],[29,55,31,55],[29,56,31,56],[30,2,31,2],[30,37,31,37],[30,38,31,38],[32,2,33,2],[32,37,33,37],[32,38,33,38],[32,39,33,39],[32,40,33,40],[29,49,31,49],[29,50,31,50],[29,51,31,51],[29,52,31,52],[29,53,31,53],[29,54,31,54],[29,43,31,43],[29,44,31,44],[29,45,31,45],[29,46,31,46],[29,47,31,47],[29,48,31,48],[32,56,33,56],[34,0,36,0],[34,1,35,1],[34,2,36,2],[34,3,35,3],[34,4,36,4],[34,37,36,37],[32,47,33,47],[32,48,33,48],[32,49,33,49],[32,50,33,50],[32,51,33,51],[32,52,33,52],[32,41,33,41],[32,42,33,42],[32,43,33,43],[32,44,33,44],[32,45,33,45],[32,46,33,46],[34,38,36,38],[34,39,36,39],[34,40,36,40],[34,41,36,41],[34,42,36,42],[34,43,36,43],[32,53,33,53],[32,54,33,54],[32,55,33,55],[43,3,43,48],[40,0,40,6],[44,5,48,48],[41,8,41,26],[34,56,36,56],[38,0,38,6],[38,8,38,13],[38,15,38,17],[38,19,38,23],[39,8,39,13],[39,15,39,17],[39,19,39,23],[34,50,36,50],[34,51,36,51],[34,52,36,52],[34,53,36,53],[34,54,36,54],[34,55,36,55],[34,44,36,44],[34,45,36,45],[34,46,36,46],[34,47,36,47],[34,48,36,48],[34,49,36,49],[55,5,55,48],[56,5,56,48],[57,5,57,48],[58,5,58,48],[59,5,59,48],[60,5,60,48],[49,5,49,48],[50,5,50,48],[51,5,51,48],[52,5,52,48],[53,5,53,48],[54,5,54,48],[87,15,92,33],[67,5,67,48],[68,5,68,48],[69,5,69,48],[70,5,70,48],[71,5,71,48],[72,5,72,48],[61,5,61,48],[62,5,62,48],[63,5,63,48],[64,5,64,48],[65,5,65,48],[66,5,66,48]]}
[]
[]
[]
[]
["название структурного подразделения"]
[null,null,null,null,null,null,null,null,"ГРАФИК РАБОТЫ",null,null,null,null,null,null,null,null,null,null,null,null,null,null,null,null,null,null,null,null,null,null,null,null,null,null,null,null,null,null,null,null,null,"с",null,null,null,null,"по","2020-05-31"]
[null,null,null,null,"обслуживающего персонала на",null,null,null,null,null,null,null,null,null,null,null,null,{"$f":"IF(DAY(D77)>=28,EDATE(D77,1),D77)","v":"2020-07-01"},null,null,null,null,null,"года",null,null,null,null,null,null,null,null,null,null,null,null,null,null,null,null,null,null,null,"Рабочих дней",null,null,null,{"$f":"VLOOKUP(AM8,'[5]производственный календарь '!$B$2:$D$13,3,0)","v":23},"Рабочих часов",null,null,null,null,null,null,null,null,{"$f":"VLOOKUP(AM8,'[5]производственный календарь '!$B$2:D13,2,0)","v":184}]
[null,null,null,null,null,null,null,null,null,null,null,null,null,null,null,null,null,"МАРТ",null,null,null,null,null,null,null,null,null,null,null,null,null,null,null,null,null,null,null,null,"июль"]
["№ п/п","Табельний номер","Фамилия, и., о.","Профессия,\nдолжность","номер","Отметки о явках и неявках на работу по числам месяца (часов)",null,null,null,null,null,null,null,null,null,null,null,null,null,null,null,null,null,null,null,null,null,null,null,null,null,null,null,null,null,null,null," ","отработано за месяц",null,null,null,null,null,null,null,"Всего неявок","Дни неявок",null,null,null,null,null,null,null,null,"Выходные дни"]
[null,null,null,null,null,1,2,3,4,5,6,7,8,9,10,11,12,13,14,15,"X",16,17,18,19,20,21,22,23,24,25,26,27,28,29,30,31,"дни явок","всего отработано","часов",null,null,null,null,null,null,null,"Очередной отпуск","Больничные","Бесплатный отпуск (А)","Отпуск родовой","Учеьный отпуск","Отпуск ЧАЭС","Прогул","Отпуск женский","Командировка"]
[null,null,null,null,null,null,null,null,null,null,null,null,null,null,null,null,null,null,null,null,null,null,null,null,null,null,null,null,null,null,null,null,null,null,null,null,null,null,null,"всего отработано","из них"]
[null,null,null,null,null,null," "," ",null,null,null,null,null," ",null,null,null,null,null,null,null,null,null,null,null,null,null,null,null,null,null,null,null,null,null,null,null,null,null,null,"Ночные","Вечерние","Праздничные","Сверхурочные","Работы в выходной","Переработка"]
[null,null,null,null,null,null,null,null,null,null,null,null,null,null,null,null,null,null,null,null,"Х",null,null,null,null,null,null,null,null,null,null,null,null,null,null,null,null,null,null,null,null,null,null,null,null,null,null,null,null,null,null,null,null,null,null,null,null,null,null,null,null,null,null,null,"слезинский В.Е."]
[1,"2","3","4","5","6",null,null,null,null,null,null,null,null,null,null,null,null,null,null,null,null,null,null,null,null,null,null,null,null,null,null,null,null,null,null,null,"7",null,"9",null,null,null,null,null,null,"10",null,null,null,null,null,null,null,null,null,"11",null,null,null,null,null,null,null,"медведев а.п."]
[null,null,{"$f":"'И.Б. ИЮЛЬ 2020 '!F27","v":"Сапожников А.С.,  управляющий участка"},null,null,{"$f":"INDEX('И.Б. ИЮЛЬ 2020 '!$AC$29:$HF$29,1,MATCH($F$10,'И.Б. ИЮЛЬ 2020 '!$AC$19:$HF$19,0))","v":"14:00:00"},{"$f":"INDEX('И.Б. ИЮЛЬ 2020 '!$AI$29:$HF$29,1,MATCH($F$10,'И.Б. ИЮЛЬ 2020 '!$AC$19:$HF$19,0))","v":"00:00:00"},{"$f":"INDEX('И.Б. ИЮЛЬ 2020 '!$AI$29:$HF$29,1,MATCH($F$10,'И.Б. ИЮЛЬ 2020 '!$AC$19:$HF$19,0))","v":"00:00:00"},{"$f":"INDEX('И.Б. ИЮЛЬ 2020 '!$AI$29:$HF$29,1,MATCH($F$10,'И.Б. ИЮЛЬ 2020 '!$AC$19:$HF$19,0))","v":"00:00:00"},{"$f":"INDEX('И.Б. ИЮЛЬ 2020 '!$AI$29:$HF$29,1,MATCH($F$10,'И.Б. ИЮЛЬ 2020 '!$AC$19:$HF$19,0))","v":"00:00:00"},{"$f":"INDEX('И.Б. ИЮЛЬ 2020 '!$AI$29:$HF$29,1,MATCH($F$10,'И.Б. ИЮЛЬ 2020 '!$AC$19:$HF$19,0))","v":"00:00:00"},{"$f":"INDEX('И.Б. ИЮЛЬ 2020 '!$AI$29:$HF$29,1,MATCH($F$10,'И.Б. ИЮЛЬ 2020 '!$AC$19:$HF$19,0))","v":"00:00:00"},{"$f":"INDEX('И.Б. ИЮЛЬ 2020 '!$AI$29:$HF$29,1,MATCH($F$10,'И.Б. ИЮЛЬ 2020 '!$AC$19:$HF$19,0))","v":"00:00:00"},{"$f":"INDEX('И.Б. ИЮЛЬ 2020 '!$AI$29:$HF$29,1,MATCH($F$10,'И.Б. ИЮЛЬ 2020 '!$AC$19:$HF$19,0))","v":"00:00:00"},{"$f":"INDEX('И.Б. ИЮЛЬ 2020 '!$AI$29:$HF$29,1,MATCH($F$10,'И.Б. ИЮЛЬ 2020 '!$AC$19:$HF$19,0))","v":"00:00:00"},{"$f":"INDEX('И.Б. ИЮЛЬ 2020 '!$AI$29:$HF$29,1,MATCH($F$10,'И.Б. ИЮЛЬ 2020 '!$AC$19:$HF$19,0))","v":"00:00:00"},{"$f":"INDEX('И.Б. ИЮЛЬ 2020 '!$AI$29:$HF$29,1,MATCH($F$10,'И.Б. ИЮЛЬ 2020 '!$AC$19:$HF$19,0))","v":"00:00:00"},{"$f":"INDEX('И.Б. ИЮЛЬ 2020 '!$AI$29:$HF$29,1,MATCH($F$10,'И.Б. ИЮЛЬ 2020 '!$AC$19:$HF$19,0))","v":"00:00:00"},{"$f":"INDEX('И.Б. ИЮЛЬ 2020 '!$AI$29:$HF$29,1,MATCH($F$10,'И.Б. ИЮЛЬ 2020 '!$AC$19:$HF$19,0))","v":"00:00:00"},{"$f":"INDEX('И.Б. ИЮЛЬ 2020 '!$AI$29:$HF$29,1,MATCH($F$10,'И.Б. ИЮЛЬ 2020 '!$AC$19:$HF$19,0))","v":"00:00:00"},{"$f":"INDEX('И.Б. ИЮЛЬ 2020 '!$AI$29:$HF$29,1,MATCH($F$10,'И.Б. ИЮЛЬ 2020 '!$AC$19:$HF$19,0))","v":"00:00:00"},{"$f":"INDEX('И.Б. ИЮЛЬ 2020 '!$AI$29:$HF$29,1,MATCH($F$10,'И.Б. ИЮЛЬ 2020 '!$AC$19:$HF$19,0))","v":"00:00:00"},{"$f":"INDEX('И.Б. ИЮЛЬ 2020 '!$AI$29:$HF$29,1,MATCH($F$10,'И.Б. ИЮЛЬ 2020 '!$AC$19:$HF$19,0))","v":"00:00:00"},{"$f":"INDEX('И.Б. ИЮЛЬ 2020 '!$AI$29:$HF$29,1,MATCH($F$10,'И.Б. ИЮЛЬ 2020 '!$AC$19:$HF$19,0))","v":"00:00:00"},{"$f":"INDEX('И.Б. ИЮЛЬ 2020 '!$AI$29:$HF$29,1,MATCH($F$10,'И.Б. ИЮЛЬ 2020 '!$AC$19:$HF$19,0))","v":"00:00:00"},{"$f":"INDEX('И.Б. ИЮЛЬ 2020 '!$AI$29:$HF$29,1,MATCH($F$10,'И.Б. ИЮЛЬ 2020 '!$AC$19:$HF$19,0))","v":"00:00:00"},{"$f":"INDEX('И.Б. ИЮЛЬ 2020 '!$AI$29:$HF$29,1,MATCH($F$10,'И.Б. ИЮЛЬ 2020 '!$AC$19:$HF$19,0))","v":"00:00:00"},{"$f":"INDEX('И.Б. ИЮЛЬ 2020 '!$AI$29:$HF$29,1,MATCH($F$10,'И.Б. ИЮЛЬ 2020 '!$AC$19:$HF$19,0))","v":"00:00:00"},{"$f":"INDEX('И.Б. ИЮЛЬ 2020 '!$AI$29:$HF$29,1,MATCH($F$10,'И.Б. ИЮЛЬ 2020 '!$AC$19:$HF$19,0))","v":"00:00:00"},{"$f":"INDEX('И.Б. ИЮЛЬ 2020 '!$AI$29:$HF$29,1,MATCH($F$10,'И.Б. ИЮЛЬ 2020 '!$AC$19:$HF$19,0))","v":"00:00:00"},{"$f":"INDEX('И.Б. ИЮЛЬ 2020 '!$AI$29:$HF$29,1,MATCH($F$10,'И.Б. ИЮЛЬ 2020 '!$AC$19:$HF$19,0))","v":"00:00:00"},{"$f":"INDEX('И.Б. ИЮЛЬ 2020 '!$AI$29:$HF$29,1,MATCH($F$10,'И.Б. ИЮЛЬ 2020 '!$AC$19:$HF$19,0))","v":"00:00:00"},{"$f":"INDEX('И.Б. ИЮЛЬ 2020 '!$AI$29:$HF$29,1,MATCH($F$10,'И.Б. ИЮЛЬ 2020 '!$AC$19:$HF$19,0))","v":"00:00:00"},{"$f":"INDEX('И.Б. ИЮЛЬ 2020 '!$AI$29:$HF$29,1,MATCH($F$10,'И.Б. ИЮЛЬ 2020 '!$AC$19:$HF$19,0))","v":"00:00:00"},{"$f":"INDEX('И.Б. ИЮЛЬ 2020 '!$AI$29:$HF$29,1,MATCH($F$10,'И.Б. ИЮЛЬ 2020 '!$AC$19:$HF$19,0))","v":"00:00:00"},{"$f":"INDEX('И.Б. ИЮЛЬ 2020 '!$AI$29:$HF$29,1,MATCH($F$10,'И.Б. ИЮЛЬ 2020 '!$AC$19:$HF$19,0))","v":"00:00:00"},{"$f":"INDEX('И.Б. ИЮЛЬ 2020 '!$AI$29:$HF$29,1,MATCH($F$10,'И.Б. ИЮЛЬ 2020 '!$AC$19:$HF$19,0))","v":"00:00:00"},{"$f":"COUNTIF($F15:$AK15,\">0\")","v":1}," ",null,null,null,null,null,null,null,null,{"$f":"COUNTIF($F16:$AK16,\"=От\")","v":1},null,null,null,null,null,null,null,null,{"$f":"COUNTIF(F16:AK16,\"В\")","v":30}]
[null,null,null,null,null,{"$f":"IF('И.Б. ИЮЛЬ 2020 '!AC28=\"ОТ\",\"ОТ\",IF(F15=0,\"В\",\"Я\"))","v":"Я"},{"$f":"IF('И.Б. ИЮЛЬ 2020 '!AI28=\"ОТ\",\"ОТ\",IF(G15=0,\"В\",\"Я\"))","v":"ОТ"},{"$f":"IF('И.Б. ИЮЛЬ 2020 '!AO28=\"ОТ\",\"ОТ\",IF(H15=0,\"В\",\"Я\"))","v":"В"},{"$f":"IF(I15=0,\"В\",\"Я\")","v":"В"},"В","В","В","В","В","В","В","В","В","В","В","В","В","В","В","В","В","В","В","В","В","В","В","В","В","В","В","В"]
[null,null," ",null,null,null,null,null,null,null,null,null,null,null,null,null,null,null,null,null,null,null,null,null,null,null,null,null,null,null,null,null,null,null,null,null,null,{"$f":"COUNTIF($F17:$AK17,\">0\")","v":0},{"$f":"SUM($F$17:$AK$17)","v":0},null,null,null,null,null,null,null,null,null,null,null,null,null,null,null,null,null,{"$f":"COUNTIF(F18:AK18,\"В\")","v":0}]
[]
[null,null,{"$f":"'И.Б. ИЮЛЬ 2020 '!#REF!","v":{"$error":"#REF!"}},null,null,null,null,null,null,null,null,null,null,null,null,null,null,null,null,null,null,null,null,null,null,null,null,null,null,null,null,null,null,null,null,null,null,{"$f":"COUNTIF($F19:$AK19,\">0\")","v":0},{"$f":"SUM($F$19:$AK$19)","v":0},null,null,null,null,null,null,null,null,null,null,null,null,null,null,null,null,null,{"$f":"COUNTIF(F20:AK20,\"В\")","v":0}]
[]
[null,null,{"$f":"'И.Б. ИЮЛЬ 2020 '!#REF!","v":{"$error":"#REF!"}},null,null,null,null,null,null,null,null,null,null,null,null,null,null,null,null,null,null,null,null,null,null,null,null,null,null,null,null,null,null,null,null,null,null,{"$f":"COUNTIF($F21:$AK21,\">0\")","v":0},{"$f":"SUM($F$21:$AK$21)","v":0},null,null,null,null,null,null,null,null,null,null,null,null,null,null,null,null,null,{"$f":"COUNTIF(F22:AK22,\"В\")","v":0}]
[]
[null,null,{"$f":"'И.Б. ИЮЛЬ 2020 '!#REF!","v":{"$error":"#REF!"}},null,null,null,null,null,null,null,null,null,null,null,null,null,null,null,null,null,null,null,null,null,null,null,null,null,null,null,null,null,null,null,null,null,null,{"$f":"COUNTIF($F23:$AK23,\">0\")","v":0},{"$f":"SUM($F$23:$AK$23)","v":0},null,null,null,null,null,null,null,null,null,null,null,null,null,null,null,null,null,{"$f":"COUNTIF(F24:AK24,\"В\")","v":0}]
[]
[null,null,{"$f":"'И.Б. ИЮЛЬ 2020 '!#REF!","v":{"$error":"#REF!"}},null,null,null,null,null,null,null,null,null,null,null,null,null,null,null,null,null,null,null,null,null,null,null,null,null,null,null,null,null,null,null,null,null,null,{"$f":"COUNTIF($F25:$AK25,\">0\")","v":0},{"$f":"SUM($F$25:$AK$25)","v":0},null,null,null,null,null,null,null,null,null,null,null,null,null,null,null,null,null,{"$f":"COUNTIF(F26:AK26,\"В\")","v":0}]
[]
[null,null,{"$f":"'И.Б. ИЮЛЬ 2020 '!#REF!","v":{"$error":"#REF!"}},null,null,null,null,null,null,null,null,null,null,null,null,null,null,null,null,null,null,null,null,null,null,null,null,null,null,null,null,null,null,null,null,null,null,{"$f":"COUNTIF($F27:$AK27,\">0\")","v":0},{"$f":"SUM($F$24:$AK$27)","v":0},null,null,null,null,null,null,null,null,null,null,null,null,null,null,null,null,null,{"$f":"COUNTIF(F28:AK28,\"В\")","v":0}]
[]
[null,null,{"$f":"'И.Б. ИЮЛЬ 2020 '!#REF!","v":{"$error":"#REF!"}},null,null,null,null,null,null,null,null,null,null,null,null,null,null,null,null,null,null,null,null,null,null,null,null,null,null,null,null,null,null,null,null,null,null,{"$f":"COUNTIF($F29:$AK29,\">0\")","v":0},{"$f":"SUM($F$29:$AK$29)","v":0},null,{"$f":"SUMIF($F29:$AK29,\">8\",$F30:$AK30)","v":0},{"$f":"COUNTIF($F29:$AK29,\"=12\")+COUNTIF($F30:$AK30,\"=8\")*2","v":0},{"$f":"SUMIF($F$12:$AK$12,\"ЧП\",$F29:$AK29)","v":0},{"$f":"SUMPRODUCT(IF(ISNUMBER(F29:AK29),(F29:AK29>8)*(F29:AK29-8),0))","v":0},{"$f":"SUMIF($F$36:$AK$36,\"в\",$F29:$AK29)","v":0},{"$f":"IF($AN29>$BF$7,$AN29-$BF$7,\"–\")","v":"–"},{"$f":"SUM($AV29:$BD30)","v":0},{"$f":"COUNTIF($F29:$AK29,\"=От\")","v":0},{"$f":"COUNTIF($F29:$AK29,\"=Б\")","v":0},{"$f":"COUNTIF($F29:$AK29,\"=А\")","v":0},{"$f":"COUNTIF($F29:$AK29,\"=Ор\")","v":0},{"$f":"COUNTIF($F29:$AK29,\"=У\")","v":0},{"$f":"COUNTIF($F29:$AK29,\"=Ч\")","v":0},{"$f":"COUNTIF($F29:$AK29,\"=Пр\")","v":0},{"$f":"COUNTIF($F29:$AK29,\"=Ож\")","v":0},{"$f":"COUNTIF($F29:$AK29,\"=К\")","v":0},{"$f":"COUNTIF(F30:AK30,\"В\")","v":0}]
[]
[null,null,{"$f":"'И.Б. ИЮЛЬ 2020 '!F27","v":"Сапожников А.С.,  управляющий участка"},null,null,null,null,null,null,null,null,null,null,null,null,null,null,null,null,null,null,null,null,null,null,null,null,null,null,null,null,null,null,null,null,null,null,{"$f":"COUNTIF($F31:$AK31,\">0\")","v":0},{"$f":"SUM($F$31:$AK$31)","v":0},null,null,null,null,null,null,null,null,null,null,null,null,null,null,null,null,null,0]
[]
[null,null,null,null,null,null,null,null,null,null,null,null,null,null,null,null,null,null,null,null,null,null,null,null,null,null,null,null,null,null,null,null,null,null,null,null,null,{"$f":"COUNTIF($F33:$AK33,\">0\")","v":0},{"$f":"SUM($F$33:$AK$33)","v":0},null,null,null,null,null,null,null,null,null,null,null,null,null,null,null,null,null,0]
[]
[null,"101",null,null,null,null,null,null,null,null,null,null,null,null,null,null,null,null,null,null,null,null,null,null,null,null,null,null,null,null,null,null,null,null,null,null,null,{"$f":"COUNTIF($F35:$AK35,\">0\")","v":0},{"$f":"SUM($F$35:$AK$35)","v":0},null,{"$f":"SUM(E36:AJ36)","v":0},{"$f":"COUNTIF($F35:$AK35,\"=12\")+COUNTIF($F36:$AK36,\"=8\")*2","v":0},{"$f":"SUMIF($F$12:$AK$12,\"ЧП\",$F35:$AK35)","v":0},{"$f":"SUMPRODUCT(IF(ISNUMBER(F35:AK35),(F35:AK35>8)*(F35:AK35-8),0))","v":0},{"$f":"SUMIF($F$36:$AK$36,\"в\",$F35:$AK35)","v":0},{"$f":"IF($AN35>$BF$7,$AN35-$BF$7,\"–\")","v":"–"},{"$f":"SUM($AV35:$BD36)","v":0},{"$f":"COUNTIF($F35:$AK35,\"=От\")","v":0},{"$f":"COUNTIF($F35:$AK35,\"=Б\")","v":0},{"$f":"COUNTIF($F35:$AK35,\"=А\")","v":0},{"$f":"COUNTIF($F35:$AK35,\"=Ор\")","v":0},{"$f":"COUNTIF($F35:$AK35,\"=У\")","v":0},{"$f":"COUNTIF($F35:$AK35,\"=Ч\")","v":0},{"$f":"COUNTIF($F35:$AK35,\"=Пр\")","v":0},{"$f":"COUNTIF($F35:$AK35,\"=Ож\")","v":0},{"$f":"COUNTIF($F35:$AK35,\"=К\")","v":0},31]
[]
[]
[]
[null,null,null,null,null,null,null,null,"Дальше меняйте формулы "]
[]
[]
[null,null,null,null,null,null,null,null,"ЗДЕСЬ ДОЛЖНО ВСТАТЬ \"ОТ\""]
[]
[]
[null,null,null,null,null,"ПРОШУ ПОМОЩИ ДОВЕСТИ ДО ЛОГИЧЕСКОГО ЗАВЕРШЕНИЯ ПРОЦЕСС ПЕРЕНОСА ДАННЫХ ИЗ ГРАФИКА В ТАБЕЛЬ. МНЕ НАДО ОТКОРРЕКТИРОВАТЬ  ФОРМУЛУ ТАК, ЧТОБЫ В ЯЧЕЙКАХ ПРОСТАВЛЯЛИСЬ НЕ ТОЛЬКО БУКВЫ \"В\" \"Я\" , НО И \"ОТ\", ЕСЛИ В ГРАФИКЕ СТОИТ \"ОТ\"."]
[]
[]
[]
[]
[]
[]
[]
[]
[]
[]
[]
[]
[]
[]
[]
[]
[]
[]
[]
[]
[]
[]
[]
[]
[]
[]
[]
[]
[null,null,null,null,null,null,null,null,null,null,null,null,null,null,null,null,null,null,null,null,null,null,null,null,null,null,null,null,null,null,null,null,null,null,null,null,null,null,null,null,null,null," "]
[]
[]
[null,null,null,"2020-07-01"]
[null,null,null,2020]
[null,null,null,7]
[null,null,null,1,2,3,4,5,6,7,8,9,10,11,12,13,14,15,16,17,18,19,20,21,22,23,24,25,26,27,28,29,30,31]
[]
[null,null,null,null,null,null,null,null,null,null,null,null,null,null,null,null,null,null,null,null,null,null,null,null,null,null,null,null,null,null,null,null,null,null,null,null,null,null,"2020-01-01"]
[null,null,null,null,null,null,null,null,null,null,null,null,null,null,null,null,null,null,null,null,null,null,null,null,null,null,null,null,null,null,null,null,null,null,null,null,null,null,"2020-01-02"]
[null,null,null,null,null,null,null,null,null,null,null,null,null,null,null,null,null,null,null,null,null,null,null,null,null,null,null,null,null,null,null,null,null,null,null,null,null,null,"2020-01-03"]
[null,null,null,null,null,null,null,null,null,null,null,null,null,null,null,null,null,null,null,null,null,null,null,null,null,null,null,null,null,null,null,null,null,null,null,null,null,null,"2020-01-04"]
[null,null,null,null,null,null,null,null,null,null,null,null,null,null,null,null,null,null,null,null,null,null,null,null,null,null,null,null,null,null,null,null,null,null,null,null,null,null,"2020-01-05"]
[null,null,null,null,null,null,null,null,null,null,null,null,null,null,null,null,null,null,null,null,null,null,null,null,null,null,null,null,null,null,null,null,null,null,null,null,null,null,"2020-01-06"]
[null,null,null,null,null,null,null,null,null,null,null,null,null,null,null,"здесь должна отображаться фамилия",null,null,null,null,null,null,null,null,null,null,null,null,null,null,null,null,null,null,null,null,null,null,"2020-01-07"]
[null,null,null,null,null,null,null,null,null,null,null,null,null,null,null,null,null,null,null,null,null,null,null,null,null,null,null,null,null,null,null,null,null,null,null,null,null,null,"2020-01-08"]
[null,null,null,null,null,null,null,null,null,null,null,null,null,null,null,null,null,null,null,null,null,null,null,null,null,null,null,null,null,null,null,null,null,null,null,null,null,null,"2020-02-23"]
[null,null,null,null,null,null,null,null,null,null,null,null,null,null,null,null,null,null,null,null,null,null,null,null,null,null,null,null,null,null,null,null,null,null,null,null,null,null,"2020-03-08"]
[null,null,null,null,null,null,null,null,null,null,null,null,null,null,null,null,null,null,null,null,null,null,null,null,null,null,null,null,null,null,null,null,null,null,null,null,null,null,"2020-05-01"]
[]
[]
[null,null,null,null,null,null,null,null,null,null,null,null,null,null,null,null,null,null,null,null,null,null,null,null,null,null,null,null,null,null,null,null,null,null,null,null,null,null,"2020-05-09"]
[]
[null,null,null,null,null,null,null,null,null,null,null,null,null,null,null,null,null,null,null,null,null,null,null,null,null,null,null,null,null,null,null,null,null,null,null,null,null,null,"2020-06-12"]
[null,null,null,null,null,null,null,null,null,null,null,null,null,null,null,null,null,null,null,null,null,null,null,null,null,null,null,null,null,null,null,null,null,null,null,null,null,null,"2020-11-04"]

{"sheet":"И.Б. ИЮЛЬ 2020 ","index":1,"n_rows":50,"n_cols":257,"rows_kept":50,"cut":false,"hidden":false,"merged":[[17,24,17,27],[17,28,17,33],[17,250,17,254],[18,0,19,4],[18,5,19,22],[18,23,19,27],[18,28,19,33],[18,34,19,39],[18,40,19,45],[18,46,19,51],[18,184,19,189],[18,190,19,195],[4,241,4,242],[11,235,12,235],[13,250,13,254],[0,241,0,242],[1,241,1,242],[2,241,2,242],[3,241,3,242],[18,64,19,69],[18,70,19,75],[18,76,19,81],[18,82,19,87],[14,0,14,227],[14,250,14,254],[15,0,15,227],[15,250,15,254],[16,0,16,227],[16,250,16,254],[18,250,18,254],[19,214,19,228],[19,250,19,254],[18,160,19,165],[18,166,19,171],[18,172,19,177],[18,178,19,183],[20,5,20,22],[20,24,20,27],[20,28,20,33],[20,34,20,39],[20,40,20,45],[18,196,19,201],[18,202,19,207],[18,208,19,213],[18,214,18,232],[18,124,19,129],[18,130,19,135],[18,136,19,141],[18,142,19,147],[18,148,19,153],[18,154,19,159],[18,88,19,93],[18,94,19,99],[18,100,19,105],[18,106,19,111],[18,112,19,117],[18,118,19,123],[18,52,19,57],[18,58,19,63],[20,208,20,212],[20,214,20,220],[20,154,20,159],[20,160,20,165],[20,166,20,171],[20,172,20,177],[20,178,20,183],[20,184,20,189],[20,118,20,123],[20,124,20,129],[20,130,20,135],[20,136,20,141],[20,142,20,147],[20,148,20,153],[26,0,33,4],[26,5,33,22],[26,23,27,27],[26,28,26,33],[26,34,26,39],[26,40,26,45],[26,46,26,51],[26,52,26,57],[20,202,20,207],[20,190,20,195],[20,196,20,201],[20,82,20,87],[20,88,20,93],[20,94,20,99],[20,100,20,105],[20,106,20,111],[20,112,20,117],[20,46,20,51],[20,52,20,57],[20,58,20,63],[20,64,20,69],[20,70,20,75],[20,76,20,81],[20,1,20,4],[26,160,26,165],[26,94,26,99],[26,100,26,105],[26,106,26,111],[26,112,26,117],[26,118,26,123],[26,124,26,129],[26,58,26,63],[26,64,26,69],[26,70,26,75],[26,76,26,81],[26,82,26,87],[26,88,26,93],[27,88,27,93],[27,94,27,99],[27,100,27,105],[26,202,26,207],[26,208,26,213],[26,214,29,220],[27,28,27,33],[27,34,27,39],[27,40,27,45],[27,46,27,51],[27,52,27,57],[27,58,27,63],[27,64,27,69],[26,166,26,171],[26,172,26,177],[26,178,26,183],[26,184,26,189],[26,190,26,195],[26,196,26,201],[26,130,26,135],[26,136,26,141],[26,142,26,147],[26,148,26,153],[26,154,26,159],[28,40,28,45],[28,46,28,51],[28,52,28,57],[27,178,27,183],[27,184,27,189],[27,190,27,195],[27,196,27,201],[27,202,27,207],[27,208,27,213],[27,142,27,147],[27,148,27,153],[27,154,27,159],[27,160,27,165],[27,166,27,171],[27,172,27,177],[27,106,27,111],[27,112,27,117],[27,118,27,123],[27,124,27,129],[27,130,27,135],[27,136,27,141],[27,70,27,75],[27,76,27,81],[27,82,27,87],[28,106,28,111],[28,112,28,117],[28,118,28,123],[28,124,28,129],[28,58,28,63],[28,64,28,69],[28,70,28,75],[28,76,28,81],[28,82,28,87],[28,88,28,93],[28,202,28,207],[28,208,28,213],[28,221,29,228],[29,28,29,33],[29,34,29,39],[29,40,29,45],[29,46,29,51],[29,52,29,57],[29,58,29,63],[29,64,29,69],[28,166,28,171],[28,172,28,177],[28,178,28,183],[28,184,28,189],[28,190,28,195],[28,196,28,201],[28,130,28,135],[28,136,28,141],[28,142,28,147],[28,148,28,153],[28,154,28,159],[28,160,28,165],[28,94,28,99],[28,100,28,105],[29,196,29,201],[29,202,29,207],[29,208,29,213],[29,142,29,147],[29,148,29,153],[29,154,29,159],[29,160,29,165],[29,166,29,171],[29,172,29,177],[30,23,31,27],[30,28,30,33],[30,34,30,39],[30,40,30,45],[30,46,30,51],[30,52,30,57],[29,178,29,183],[29,184,29,189],[29,190,29,195],[29,106,29,111],[29,112,29,117],[29,118,29,123],[29,124,29,129],[29,130,29,135],[29,136,29,141],[29,70,29,75],[29,76,29,81],[29,82,29,87],[29,88,29,93],[29,94,29,99],[29,100,29,105],[28,23,29,27],[28,28,28,33],[28,34,28,39],[30,106,30,111],[30,112,30,117],[30,118,30,123],[30,124,30,129],[30,58,30,63],[30,64,30,69],[30,70,30,75],[30,76,30,81],[30,82,30,87],[30,88,30,93],[30,202,30,207],[30,208,30,213],[30,214,31,220],[30,221,31,228],[31,28,31,33],[31,34,31,39],[31,40,31,45],[31,46,31,51],[31,52,31,57],[31,58,31,63],[30,166,30,171],[30,172,30,177],[30,178,30,183],[30,184,30,189],[30,190,30,195],[30,196,30,201],[30,130,30,135],[30,136,30,141],[30,142,30,147],[30,148,30,153],[30,154,30,159],[30,160,30,165],[30,94,30,99],[30,100,30,105],[31,166,31,171],[31,100,31,105],[31,106,31,111],[31,112,31,117],[31,118,31,123],[31,124,31,129],[31,130,31,135],[31,64,31,69],[31,70,31,75],[31,76,31,81],[31,82,31,87],[31,88,31,93],[31,94,31,99],[33,202,33,207],[33,208,33,213],[33,214,33,220],[31,208,31,213],[32,24,32,27],[32,28,32,33],[32,34,32,39],[32,40,32,45],[32,46,32,51],[32,52,32,57],[32,58,32,63],[32,64,32,69],[32,70,32,75],[31,172,31,177],[31,178,31,183],[31,184,31,189],[31,190,31,195],[31,196,31,201],[31,202,31,207],[31,136,31,141],[31,142,31,147],[31,148,31,153],[31,154,31,159],[31,160,31,165],[32,202,32,207],[32,208,32,213],[32,214,32,220],[32,148,32,153],[32,154,32,159],[32,160,32,165],[32,166,32,171],[32,172,32,177],[32,178,32,183],[33,24,33,27],[33,28,33,33],[33,34,33,39],[33,40,33,45],[33,46,33,51],[33,52,33,57],[32,184,32,189],[32,190,32,195],[32,196,32,201],[32,112,32,117],[32,118,32,123],[32,124,32,129],[32,130,32,135],[32,136,32,141],[32,142,32,147],[32,76,32,81],[32,82,32,87],[32,88,32,93],[32,94,32,99],[32,100,32,105],[32,106,32,111],[33,94,33,99],[33,100,33,105],[33,106,33,111],[33,112,33,117],[33,118,33,123],[33,124,33,129],[33,58,33,63],[33,64,33,69],[33,70,33,75],[33,76,33,81],[33,82,33,87],[33,88,33,93],[33,166,33,171],[33,172,33,177],[33,178,33,183],[33,184,33,189],[33,190,33,195],[33,196,33,201],[33,130,33,135],[33,136,33,141],[33,142,33,147],[33,148,33,153],[33,154,33,159],[33,160,33,165],[36,5,36,21],[38,5,38,7],[38,8,38,21],[38,27,38,56],[38,63,38,91],[41,5,41,7],[41,8,41,21],[41,27,41,56],[41,63,41,91],[39,5,39,7],[39,8,39,21],[39,27,39,56],[39,63,39,91],[40,5,40,7],[40,8,40,21],[40,27,40,56],[40,63,40,91],[45,5,45,7],[45,8,45,21],[45,27,45,56],[45,63,45,91],[46,5,46,7],[46,8,46,21],[46,27,46,56],[46,63,46,91],[44,63,44,91],[43,5,43,7],[43,8,43,21],[43,27,43,56],[43,63,43,91],[44,5,44,7],[44,8,44,21],[44,27,44,56],[42,5,42,7],[42,8,42,21],[42,27,42,56],[42,63,42,91],[49,5,49,7],[49,8,49,21],[49,27,49,56],[49,63,49,91],[47,5,47,7],[47,8,47,21],[47,27,47,56],[47,63,47,91],[48,5,48,7],[48,8,48,21],[48,27,48,56],[48,63,48,91]]}
[null,null,null,null,null,null,null,null,null,null,null,null,null,null,null,null,null,null,null,null,null,null,null,null,null,null,null,null,null,null,null,null,null,null,null,null,null,null,null,null,null,null,null,null,null,null,null,null,null,null,null,null,null,null,null,null,null,null,null,null,null,null,null,null,null,null,null,null,null,null,null,null,null,null,null,null,null,null,null,null,null,null,null,null,null,null,null,null,null,null,null,null,null,null,null,null,null,null,null,null,null,null,null,null,null,null,null,null,null,null,null,null,null,null,null,null,null,null,null,null,null,null,null,null,null,null,null,null,null,null,null,null,null,null,null,null,null,null,null,null,null,null,null,null,null,null,null,null,null,null,null,null,null,null,null,null,null,null,null,null,null,null,null,null,null,null,null,null,null,null,null,null,null,null,null,null,null,null,null,null,null,null,null,null,null,null,null,null,null,null,null,null,null,null,null,null,null,null,null,null,null,null,null,null,null,null,null,null,null,null,null,null,null,null,null,null,null,null,null,null,null,null,null,null,null,null,null,null,null,null,null,null,null,null,null,null,null,null,null,null,null,"СЕГОДНЯ",null,null,null,null,null,null,null,null,"на январь 2020 года",null,1]
[null,null,null,null,null,null,null,null,null,null,null,null,null,null,null,null,null,null,null,null,null,null,null,null,null,null,null,null,null,null,null,null,null,null,null,null,null,null,null,null,null,null,null,null,null,null,null,null,null,null,null,null,null,null,null,null,null,null,null,null,null,null,null,null,null,null,null,null,null,null,null,null,null,null,null,null,null,null,null,null,null,null,null,null,null,null,null,null,null,null,null,null,null,null,null,null,null,null,null,null,null,null,null,null,null,null,null,null,null,null,null,null,null,null,null,null,null,null,null,null,null,null,null,null,null,null,null,null,null,null,null,null,null,null,null,null,null,null,null,null,null,null,null,null,null,null,null,null,null,null,null,null,null,null,null,null,null,null,null,null,null,null,null,null,null,null,null,null,null,null,null,null,null,null,null,null,null,null,null,null,null,null,null,null,null,null,null,null,null,null,null,null,null,null,null,null,null,null,null,null,null,null,null,null,null,null,null,null,null,null,null,null,null,null,null,null,null,null,null,null,null,null,null,null,null,null,null,null,null,null,null,null,null,null,null,null,null,null,null,null,null,{"$f":"TODAY()","v":"2020-05-13"},null,null,null,null,null,null,null,null,"на февраль 2020 года",null,2]
[null,null,null,null,null,null,null,null,null,null,null,null,null,null,null,null,null,null,null,null,null,null,null,null,null,null,null,null,null,null,null,null,null,null,null,null,null,null,null,null,null,null,null,null,null,null,null,null,null,null,null,null,null,null,null,null,null,null,null,null,null,null,null,null,null,null,null,null,null,null,null,null,null,null,null,null,null,null,null,null,null,null,null,null,null,null,null,null,null,null,null,null,null,null,null,null,null,null,null,null,null,null,null,null,null,null,null,null,null,null,null,null,null,null,null,null,null,null,null,null,null,null,null,null,null,null,null,null,null,null,null,null,null,null,null,null,null,null,null,null,null,null,null,null,null,null,null,null,null,null,null,null,null,null,null,null,null,null,null,null,null,null,null,null,null,null,null,null,null,null,null,null,null,null,null,null,null,null,null,null,null,null,null,null,null,null,null,null,null,null,null,null,null,null,null,null,null,null,null,null,null,null,null,null,null,null,null,null,null,null,null,null,null,null,null,null,null,null,null,null,null,null,null,null,null,null,null,null,null,null,null,null,null,null,null,null,null,null,null,null,null,{"$f":"TEXT(HZ2,\"дддд\")","v":"суббота"},null,null,null,null,null,null,null,null,"на март 2020 года",null,3]
[null,null,null,null,null,null,null,null,null,null,null,null,null,null,null,null,null,null,null,null,null,null,null,null,null,null,null,null,null,null,null,null,null,null,null,null,null,null,null,null,null,null,null,null,null,null,null,null,null,null,null,null,null,null,null,null,null,null,null,null,null,null,null,null,null,null,null,null,null,null,null,null,null,null,null,null,null,null,null,null,null,null,null,null,null,null,null,null,null,null,null,null,null,null,null,null,null,null,null,null,null,null,null,null,null,null,null,null,null,null,null,null,null,null,null,null,null,null,null,null,null,null,null,null,null,null,null,null,null,null,null,null,null,null,null,null,null,null,null,null,null,null,null,null,null,null,null,null,null,null,null,null,null,null,null,null,null,null,null,null,null,null,null,null,null,null,null,null,null,null,null,null,null,null,null,null,null,null,null,null,null,null,null,null,null,null,null,null,null,null,null,null,null,null,null,null,null,null,null,null,null,null,null,null,null,null,null,null,null,null,null,null,null,null,null,null,null,null,null,null,null,null,null,null,null,null,null,null,null,null,null,null,null,null,null,null,null,null,null,null,null,{"$f":"WEEKNUM(IH2,2)&\"-ая неделя\"","v":"20-ая неделя"},null,null,null,null,null,null,null,null,"на апрель 2020 года",null,4]
[null,null,null,null,null,null,null,null,null,null,null,null,null,null,null,null,null,null,null,null,null,null,null,null,null,null,null,null,null,null,null,null,null,null,null,null,null,null,null,null,null,null,null,null,null,null,null,null,null,null,null,null,null,null,null,null,null,null,null,null,null,null,null,null,null,null,null,null,null,null,null,null,null,null,null,null,null,null,null,null,null,null,null,null,null,null,null,null,null,null,null,null,null,null,null,null,null,null,null,null,null,null,null,null,null,null,null,null,null,null,null,null,null,null,null,null,null,null,null,null,null,null,null,null,null,null,null,null,null,null,null,null,null,null,null,null,null,null,null,null,null,null,null,null,null,null,null,null,null,null,null,null,null,null,null,null,null,null,null,null,null,null,null,null,null,null,null,null,null,null,null,null,null,null,null,null,null,null,null,null,null,null,null,null,null,null,null,null,null,null,null,null,null,null,null,null,null,null,null,null,null,null,null,null,null,null,null,null,null,null,null,null,null,null,null,null,null,null,null,null,null,null,null,null,null,null,null,null,null,null,null,null,null,null,null,null,null,null,null,null,null,{"$f":"IF(OR(#REF!<IC3,AND(#REF!<IC2,#REF!=IC3)),$CN$19,IF(OR(#REF!>IC3,AND(#REF!>IC2,#REF!=IC3)),0,DAY(HZ2)))","v":{"$error":"#REF!"}},null,null,null,null,null,null,null,null,"на май 2020 года",null,5]
[null,null,null,null,null,null,null,null,null,null,null,null,null,null,null,null,null,null,null,null,null,null,null,null,null,null,null,null,null,null,null,null,null,null,null,null,null,null,null,null,null,null,null,null,null,null,null,null,null,null,null,null,null,null,null,null,null,null,null,null,null,null,null,null,null,null,null,null,null,null,null,null,null,null,null,null,null,null,null,null,null,null,null,null,null,null,null,null,null,null,null,null,null,null,null,null,null,null,null,null,null,null,null,null,null,null,null,null,null,null,null,null,null,null,null,null,null,null,null,null,null,null,null,null,null,null,null,null,null,null,null,null,null,null,null,null,null,null,null,null,null,null,null,null,null,null,null,null,null,null,null,null,null,null,null,null,null,null,null,null,null,null,null,null,null,null,null,null,null,null,null,null,null,null,null,null,null,null,null,null,null,null,null,null,null,null,null,null,null,null,null,null,null,null,null,null,null,null,null,null,null,null,null,null,null,null,null,null,null,null,null,null,null,null,null,null,null,null,null,null,null,null,null,null,null,null,null,null,null,null,null,null,null,null,null,null,null,null,null,null,"время",null,null,null,null,null,null,null,null,null,"на июнь 2020 года",null,6]
[null,null,null,null,null,null,null,null,null,null,null,null,null,null,null,null,null,null,null,null,null,null,null,null,null,null,null,null,null,null,null,null,null,null,null,null,null,null,null,null,null,null,null,null,null,null,null,null,null,null,null,null,null,null,null,null,null,null,null,null,null,null,null,null,null,null,null,null,null,null,null,null,null,null,null,null,null,null,null,null,null,null,null,null,null,null,null,null,null,null,null,null,null,null,null,null,null,null,null,null,null,null,null,null,null,null,null,null,null,null,null,null,null,null,null,null,null,null,null,null,null,null,null,null,null,null,null,null,null,null,null,null,null,null,null,null,null,null,null,null,null,null,null,null,null,null,null,null,null,null,null,null,null,null,null,null,null,null,null,null,null,null,null,null,null,null,null,null,null,null,null,null,null,null,null,null,null,null,null,null,null,null,null,null,null,null,null,null,null,null,null,null,null,null,null,null,null,null,null,null,null,null,null,null,null,null,null,null,null,null,null,null,null,null,null,null,null,null," ТАБЛИ",null,null,null,null,null,null,null,null,null,null,null,null,null,null,null,null,"количество дней месяца",null,null,31,null,null,null,null,null,null,null,null,null,null,null,"на июль 2020 года",null,7]
[null,null,null,null,null,null,null,null,null,null,null,null,null,null,null,null,null,null,null,null,null,null,null,null,null,null,null,null,null,null,null,null,null,null,null,null,null,null,null,null,null,null,null,null,null,null,null,null,null,null,null,null,null,null,null,null,null,null,null,null,null,null,null,null,null,null,null,null,null,null,null,null,null,null,null,null,null,null,null,null,null,null,null,null,null,null,null,null,null,null,null,null,null,null,null,null,null,null,null,null,null,null,null,null,null,null,null,null,null,null,null,null,null,null,null,null,null,null,null,null,null,null,null,null,null,null,null,null,null,null,null,null,null,null,null,null,null,null,null,null,null,null,null,null,null,null,null,null,null,null,null,null,null,null,null,null,null,null,null,null,null,null,null,null,null,null,null,null,null,null,null,null,null,null,null,null,null,null,null,null,null,null,null,null,null,null,null,null,null,null,null,null,null,null,null,null,null,null,null,null,null,null,null,null,null,null,null,null,null,null,null,null,null,null,null,null,null,null,null,null,null,null,null,null,null,null,null,null,null,null,null,null,null,null,null,"месяц",null,null,7,null,0,null,null,null,null,null,null,null,null,null,"на август 2020 года",null,8]
[null,null,null,null,null,null,null,null,null,null,null,null,null,null,null,null,null,null,null,null,null,null,null,null,null,null,null,null,null,null,null,null,null,null,null,null,null,null,null,null,null,null,null,null,null,null,null,null,null,null,null,null,null,null,null,null,null,null,null,null,null,null,null,null,null,null,null,null,null,null,null,null,null,null,null,null,null,null,null,null,null,null,null,null,null,null,null,null,null,null,null,null,null,null,null,null,null,null,null,null,null,null,null,null,null,null,null,null,null,null,null,null,null,null,null,null,null,null,null,null,null,null,null,null,null,null,null,null,null,null,null,null,null,null,null,null,null,null,null,null,null,null,null,null,null,null,null,null,null,null,null,null,null,null,null,null,null,null,null,null,null,null,null,null,null,null,null,null,null,null,null,null,null,null,null,null,null,null,null,null,null,null,null,null,null,null,null,null,null,null,null,null,null,null,null,null,null,null,null,null,null,null,null,null,null,null,null,null,null,null,null,null,null,null,null,null,null,null,null,null,null,null,null,null,null,null,null,null,null,null,null,null,null,null,null,"год",null,null,{"$f":"YEAR(A17)","v":2020},null,2.0833333333333332E-2,null,null,null,null,null,null,null,null,null,"на сентябрь 2020 года",null,9]
[null,null,null,null,null,null,null,null,null,null,null,null,null,null,null,null,null,null,null,null,null,null,null,null,null,null,null,null,null,null,null,null,null,null,null,null,null,null,null,null,null,null,null,null,null,null,null,null,null,null,null,null,null,null,null,null,null,null,null,null,null,null,null,null,null,null,null,null,null,null,null,null,null,null,null,null,null,null,null,null,null,null,null,null,null,null,null,null,null,null,null,null,null,null,null,null,null,null,null,null,null,null,null,null,null,null,null,null,null,null,null,null,null,null,null,null,null,null,null,null,null,null,null,null,null,null,null,null,null,null,null,null,null,null,null,null,null,null,null,null,null,null,null,null,null,null,null,null,null,null,null,null,null,null,null,null,null,null,null,null,null,null,null,null,null,null,null,null,null,null,null,null,null,null,null,null,null,null,null,null,null,null,null,null,null,null,null,null,null,null,null,null,null,null,null,null,null,null,null,null,null,null,null,null,null,null,null,null,null,null,null,null,null,null,null,null,null,null,null,null,null,null,null,null,null,null,null,null,null,null,null,null,null,null,null,null,null,null,null,null,6.25E-2,null,null,null,null,null,null,null,null,null,"на октябрь 2020 года",null,10]
[null,null,null,null,null,null,null,null,null,null,null,null,null,null,null,null,null,null,null,null,null,null,null,null,null,null,null,null,null,null,null,null,null,null,null,null,null,null,null,null,null,null,null,null,null,null,null,null,null,null,null,null,null,null,null,null,null,null,null,null,null,null,null,null,null,null,null,null,null,null,null,null,null,null,null,null,null,null,null,null,null,null,null,null,null,null,null,null,null,null,null,null,null,null,null,null,null,null,null,null,null,null,null,null,null,null,null,null,null,null,null,null,null,null,null,null,null,null,null,null,null,null,null,null,null,null,null,null,null,null,null,null,null,null,null,null,null,null,null,null,null,null,null,null,null,null,null,null,null,null,null,null,null,null,null,null,null,null,null,null,null,null,null,null,null,null,null,null,null,null,null,null,null,null,null,null,null,null,null,null,null,null,null,null,null,null,null,null,null,null,null,null,null,null,null,null,null,null,null,null,null,null,null,null,null,null,null,null,null,null,null,null,null,null,null,null,null,null,null,null,null,null,null,null,null,null,null,null,null,null,null,null,null,null,null,"0бед",null,null,4.1666666666666664E-2,null,0.41666666666666669,null,null,null,null,null,null,null,null,null,"на ноябрь 2020 года",null,11]
[null,null,null,null,null,null,null,null,null,null,null,null,null,null,null,null,null,null,null,null,null,null,null,null,null,null,null,null,null,null,null,null,null,null,null,null,null,null,null,null,null,null,null,null,null,null,null,null,null,null,null,null,null,null,null,null,null,null,null,null,null,null,null,null,null,null,null,null,null,null,null,null,null,null,null,null,null,null,null,null,null,null,null,null,null,null,null,null,null,null,null,null,null,null,null,null,null,null,null,null,null,null,null,null,null,null,null,null,null,null,null,null,null,null,null,null,null,null,null,null,null,null,null,null,null,null,null,null,null,null,null,null,null,null,null,null,null,null,null,null,null,null,null,null,null,null,null,null,null,null,null,null,null,null,null,null,null,null,null,null,null,null,null,null,null,null,null,null,null,null,null,null,null,null,null,null,null,null,null,null,null,null,null,null,null,null,null,null,null,null,null,null,null,null,null,null,null,null,null,null,null,null,null,null,null,null,null,null,null,null,null,null,null,null,null,null,null,null,null,null,null,null,null,null,null,null,null,null,null,null,null,null,null,null,null,null,null,null,null,null,0.45833333333333331,null,null,null,null,null,null,null,null,null,"на декабрь 2020 года",null,12]
[null,null,null,null,null,null,null,null,null,null,null,null,null,null,null,null,null,null,null,null,null,null,null,null,null,null,null,null,null,null,null,null,null,null,null,null,null,null,null,null,null,null,null,null,null,null,null,null,null,null,null,null,null,null,null,null,null,null,null,null,null,null,null,null,null,null,null,null,null,null,null,null,null,null,null,null,null,null,null,null,null,null,null,null,null,null,null,null,null,null,null,null,null,null,null,null,null,null,null,null,null,null,null,null,null,null,null,null,null,null,null,null,null,null,null,null,null,null,null,null,null,null,null,null,null,null,null,null,null,null,null,null,null,null,null,null,null,null,null,null,null,null,null,null,null,null,null,null,null,null,null,null,null,null,null,null,null,null,null,null,null,null,null,null,null,null,null,null,null,null,null,null,null,null,null,null,null,null,null,null,null,null,null,null,null,null,null,null,null,null,null,null,null,null,null,null,null,null,null,null,null,null,null,null,null,null,null,null,null,null,null,null,null,null,null,null,null,null,null,null,null,null,null,null,null,null,null,null,null,null,null,null,null,null,null,null,null,null,null,null,0.125]
[null,null,null,null,null,null,null,null,null,null,null,null,null,null,null,null,null,null,null,null,null,null,null,null,null,null,null,null,null,null,null,null,null,null,null,null,null,null,null,null,null,null,null,null,null,null,null,null,null,null,null,null,null,null,null,null,null,null,null,null,null,null,null,null,null,null,null,null,null,null,null,null,null,null,null,null,null,null,null,null,null,null,null,null,null,null,null,null,null,null,null,null,null,null,null,null,null,null,null,null,null,null,null,null,null,null,null,null,null,null,null,null,null,null,null,null,null,null,null,null,null,null,null,null,null,null,null,null,null,null,null,null,null,null,null,null,null,null,null,null,null,null,null,null,null,null,null,null,null,null,null,null,null,null,null,null,null,null,null,null,null,null,null,null,null,null,null,null,null,null,null,null,null,null,null,null,null,null,null,null,null,null,null,null,null,null,null,null,null,null,null,null,null,null,null,null,null,null,null,null,null,null,null,null,null,null,null,null,null,null,null,null,null,null,null,null,null,null,null,null,null,null,null,null,null,null,null,null,null,null,null,null,null,null,null,null,null,null,null,null,0.14583333333333334,null,null,null,null,null,null,null,null,null,"Сапожников А.С.,  управляющий участка",null,null,null,null,null,1]
["ГРАФИК",null,null,null,null,null,null,null,null,null,null,null,null,null,null,null,null,null,null,null,null,null,null,null,null,null,null,null,null,null,null,null,null,null,null,null,null,null,null,null,null,null,null,null,null,null,null,null,null,null,null,null,null,null,null,null,null,null,null,null,null,null,null,null,null,null,null,null,null,null,null,null,null,null,null,null,null,null,null,null,null,null,null,null,null,null,null,null,null,null,null,null,null,null,null,null,null,null,null,null,null,null,null,null,null,null,null,null,null,null,null,null,null,null,null,null,null,null,null,null,null,null,null,null,null,null,null,null,null,null,null,null,null,null,null,null,null,null,null,null,null,null,null,null,null,null,null,null,null,null,null,null,null,null,null,null,null,null,null,null,null,null,null,null,null,null,null,null,null,null,null,null,null,null,null,null,null,null,null,null,null,null,null,null,null,null,null,null,null,null,null,null,null,null,null,null,null,null,null,null,null,null,null,null,null,null,null,null,null,null,null,null,null,null,null,null,null,null,null,null,null,null,null,null,null,null,null,null,null,null,null,null,null,null,null,null,null,null,null,null,0.16666666666666666,null,null,null,null,null,null,null,null,null,"Сперанский А.А., слесарь-ремонтник",null,null,null,null,null,0.5]
["УЧЕТА ИСПОЛЬЗОВАНИЯ РАБОЧЕГО ВРЕМЕНИ ОБСЛУЖИВАЮЩЕГО ПЕРСОНАЛА",null,null,null,null,null,null,null,null,null,null,null,null,null,null,null,null,null,null,null,null,null,null,null,null,null,null,null,null,null,null,null,null,null,null,null,null,null,null,null,null,null,null,null,null,null,null,null,null,null,null,null,null,null,null,null,null,null,null,null,null,null,null,null,null,null,null,null,null,null,null,null,null,null,null,null,null,null,null,null,null,null,null,null,null,null,null,null,null,null,null,null,null,null,null,null,null,null,null,null,null,null,null,null,null,null,null,null,null,null,null,null,null,null,null,null,null,null,null,null,null,null,null,null,null,null,null,null,null,null,null,null,null,null,null,null,null,null,null,null,null,null,null,null,null,null,null,null,null,null,null,null,null,null,null,null,null,null,null,null,null,null,null,null,null,null,null,null,null,null,null,null,null,null,null,null,null,null,null,null,null,null,null,null,null,null,null,null,null,null,null,null,null,null,null,null,null,null,null,null,null,null,null,null,null,null,null,null,null,null,null,null,null,null,null,null,null,null,null,null,null,null,null,null,null,null,null,null,null,null,null,null,null,null,null,null,null,null,null,null,0.1875,null,null,null,null,null,null,null,null,null,"Лагутенко В.А., кассир билетный",null,null,null,null,null,0.25]
["2020-07-01",null,null,null,null,null,null,null,null,null,null,null,null,null,null,null,null,null,null,null,null,null,null,null,null,null,null,null,null,null,null,null,null,null,null,null,null,null,null,null,null,null,null,null,null,null,null,null,null,null,null,null,null,null,null,null,null,null,null,null,null,null,null,null,null,null,null,null,null,null,null,null,null,null,null,null,null,null,null,null,null,null,null,null,null,null,null,null,null,null,null,null,null,null,null,null,null,null,null,null,null,null,null,null,null,null,null,null,null,null,null,null,null,null,null,null,null,null,null,null,null,null,null,null,null,null,null,null,null,null,null,null,null,null,null,null,null,null,null,null,null,null,null,null,null,null,null,null,null,null,null,null,null,null,null,null,null,null,null,null,null,null,null,null,null,null,null,null,null,null,null,null,null,null,null,null,null,null,null,null,null,null,null,null,null,null,null,null,null,null,null,null,null,null,null,null,null,null,null,null,null,null,null,null,null,null,null,null,null,null,null,null,null,null,null,null,null,null,null,null,null,null,null,null,null,null,null,null,null,null,null,null,null,null,null,null,null,null,null,null,0.20833333333333334,null,null,null,null,null,null,null,null,null,"Купцова Г.И., кассир билетный"]
[null,null,null,null,null,null,null,null,null,null,null,null,null,null,null,null,null,null,null,null,null,null,null,null,null,null,null,null,null,null,null,null,null,null,null,null,null,null,null,null,null,null,null,null,null,null,null,null,null,null,null,null,null,null,null,null,null,null,null,null,null,null,null,null,null,null,null,null,null,null,null,null,null,null,null,null,null,null,null,null,null,null,null,null,null,null,null,null,null,null,null,null,null,null,null,null,null,null,null,null,null,null,null,null,null,null,null,null,null,null,null,null,null,null,null,null,null,null,null,null,null,null,null,null,null,null,null,null,null,null,null,null,null,null,null,null,null,null,null,null,null,null,null,null,null,null,null,null,null,null,null,null,null,null,null,null,null,null,null,null,null,null,null,null,null,null,null,null,null,null,null,null,null,null,null,null,null,null,null,null,null,null,null,null,null,null,null,null,null,null,null,null,null,null,null,null,null,null,null,null,null,null,null,null,null,null,null,null,null,null,null,null,null,null,null,null,null,null,null,null,null,null,null,null,null,null,null,null,null,null,null,null,null,null,null,null,null,null,null,null,0.22916666666666666,null,null,null,null,null,null,null,null,null,"Кипкаева Л.А., дворник"]
["№ п/п",null,null,null,null,"Фамилия Инициалы",null,null,null,null,null,null,null,null,null,null,null,null,null,null,null,null,null,"Ставка",null,null,null,null,"1900-01-01",null,null,null,null,null,2,null,null,null,null,null,"1900-01-03",null,null,null,null,null,4,null,null,null,null,null,5,null,null,null,null,null,6,null,null,null,null,null,7,null,null,null,null,null,8,null,null,null,null,null,9,null,null,null,null,null,10,null,null,null,null,null,11,null,null,null,null,null,12,null,null,null,null,null,13,null,null,null,null,null,14,null,null,null,null,null,15,null,null,null,null,null,16,null,null,null,null,null,17,null,null,null,null,null,18,null,null,null,null,null,19,null,null,null,null,null,20,null,null,null,null,null,21,null,null,null,null,null,22,null,null,null,null,null,23,null,null,null,null,null,24,null,null,null,null,null,25,null,null,null,null,null,26,null,null,null,null,null,27,null,null,null,null,null,28,null,null,null,null,null,{"$f":"IF(29<=$IE$7,29,\"-\")","v":29},null,null,null,null,null,{"$f":"IF(30<=$IE$7,30,\"-\")","v":30},null,null,null,null,null,{"$f":"IF(31<=$IE$7,31,\"-\")","v":31},null,null,null,null,null,"ВСЕГО",null,null,null,null,null,null,null,null,null,null,null,null,null,null,null,null,null,null,null,null,null,null,null,null,null,0.25,null,null,null,null,null,null,null,null,null,"Морозова Г.Н., контролёр-посадчик аттракциона"]
[null,null,null,null,null,null,null,null,null,null,null,null,null,null,null,null,null,null,null,null,null,null,null,null,null,null,null,null,null,null,null,null,null,null,null,null,null,null,null,null,null,null,null,null,null,null,null,null,null,null,null,null,null,null,null,null,null,null,null,null,null,null,null,null,null,null,null,null,null,null,null,null,null,null,null,null,null,null,null,null,null,null,null,null,null,null,null,null,null,null,null,null,null,null,null,null,null,null,null,null,null,null,null,null,null,null,null,null,null,null,null,null,null,null,null,null,null,null,null,null,null,null,null,null,null,null,null,null,null,null,null,null,null,null,null,null,null,null,null,null,null,null,null,null,null,null,null,null,null,null,null,null,null,null,null,null,null,null,null,null,null,null,null,null,null,null,null,null,null,null,null,null,null,null,null,null,null,null,null,null,null,null,null,null,null,null,null,null,null,null,null,null,null,null,null,null,null,null,null,null,null,null,null,null,null,null,null,null,null,null,null,null,null,null,"дней",null,null,null,null,null,null,null,null,null,null,null,null,null,null,null,null,null,"часов",null,null,null,null,null,null,null,0.27083333333333331,null,null,null,null,null,null,null,null,null,"Нурлиева Е.А., котролёр-посадчик аттракциона"]
[null,null,null,null,null,null,null,null,null,null,null,null,null,null,null,null,null,null,null,null,null,null,null,null,null,null,null,null,{"$f":"IFERROR($A$17+AC19-1,\"-\")","v":"2020-07-01"},null,null,null,null,null,{"$f":"IFERROR($A$17+AI19-1,\"-\")","v":"2020-07-02"},null,null,null,null,null,{"$f":"IFERROR($A$17+AO19-1,\"-\")","v":"2020-07-03"},null,null,null,null,null,{"$f":"IFERROR($A$17+AU19-1,\"-\")","v":"2020-07-04"},null,null,null,null,null,{"$f":"IFERROR($A$17+BA19-1,\"-\")","v":"2020-07-05"},null,null,null,null,null,{"$f":"IFERROR($A$17+BG19-1,\"-\")","v":"2020-07-06"},null,null,null,null,null,{"$f":"IFERROR($A$17+BM19-1,\"-\")","v":"2020-07-07"},null,null,null,null,null,{"$f":"IFERROR($A$17+BS19-1,\"-\")","v":"2020-07-08"},null,null,null,null,null,{"$f":"IFERROR($A$17+BY19-1,\"-\")","v":"2020-07-09"},null,null,null,null,null,{"$f":"IFERROR($A$17+CE19-1,\"-\")","v":"2020-07-10"},null,null,null,null,null,{"$f":"IFERROR($A$17+CK19-1,\"-\")","v":"2020-07-11"},null,null,null,null,null,{"$f":"IFERROR($A$17+CQ19-1,\"-\")","v":"2020-07-12"},null,null,null,null,null,{"$f":"IFERROR($A$17+CW19-1,\"-\")","v":"2020-07-13"},null,null,null,null,null,{"$f":"IFERROR($A$17+DC19-1,\"-\")","v":"2020-07-14"},null,null,null,null,null,{"$f":"IFERROR($A$17+DI19-1,\"-\")","v":"2020-07-15"},null,null,null,null,null,{"$f":"IFERROR($A$17+DO19-1,\"-\")","v":"2020-07-16"},null,null,null,null,null,{"$f":"IFERROR($A$17+DU19-1,\"-\")","v":"2020-07-17"},null,null,null,null,null,{"$f":"IFERROR($A$17+EA19-1,\"-\")","v":"2020-07-18"},null,null,null,null,null,{"$f":"IFERROR($A$17+EG19-1,\"-\")","v":"2020-07-19"},null,null,null,null,null,{"$f":"IFERROR($A$17+EM19-1,\"-\")","v":"2020-07-20"},null,null,null,null,null,{"$f":"IFERROR($A$17+ES19-1,\"-\")","v":"2020-07-21"},null,null,null,null,null,{"$f":"IFERROR($A$17+EY19-1,\"-\")","v":"2020-07-22"},null,null,null,null,null,{"$f":"IFERROR($A$17+FE19-1,\"-\")","v":"2020-07-23"},null,null,null,null,null,{"$f":"IFERROR($A$17+FK19-1,\"-\")","v":"2020-07-24"},null,null,null,null,null,{"$f":"IFERROR($A$17+FQ19-1,\"-\")","v":"2020-07-25"},null,null,null,null,null,{"$f":"IFERROR($A$17+FW19-1,\"-\")","v":"2020-07-26"},null,null,null,null,null,{"$f":"IFERROR($A$17+GC19-1,\"-\")","v":"2020-07-27"},null,null,null,null,null,{"$f":"IFERROR($A$17+GI19-1,\"-\")","v":"2020-07-28"},null,null,null,null,null,{"$f":"IFERROR($A$17+GO19-1,\"-\")","v":"2020-07-29"},null,null,null,null,null,{"$f":"IFERROR($A$17+GU19-1,\"-\")","v":"2020-07-30"},null,null,null,null,null,null,null,null,null,null,null,null,null,null,null,null,null,null,null,null,null,null,null,null,null,null,null,null,null,null,null,null,184,null,null,null,null,1]
[]
[]
[]
[]
[]
[9,null,null,null,null,"Сапожников А.С.,  управляющий участка",null,null,null,null,null,null,null,null,null,null,null,null,null,null,null,null,null,1,null,null,null,null,0.41666666666666669,null,null,null,null,null,"ОТ",null,null,null,null,null,null,null,null,null,null,null,null,null,null,null,null,null,null,null,null,null,null,null,null,null,null,null,null,null,null,null,null,null,null,null,null,null,null,null,null,null,null,null,null,null,null,null,null,null,null,null,null,null,null,null,null,null,null,null,null,null,null,null,null,null,null,null,null,null,null,null,null,null,null,null,null,null,null,null,null,null,null,null,null,null,null,null,null,null,null,null,null,null,null,null,null,null,null,null,null,null,null,null,null,null,null,null,null,null,null,null,null,null,null,null,null,null,null,null,null,null,null,null,null,null,null,null,null,null,null,null,null,null,null,null,null,null,null,null,null,null,null,null,null,null,null,null,null,null,null,null,null,null,null,null,null,null,null,null,null,null,null,null,null,null,null,null,null,null,null,null,null,null,null,null,null,null,null,null,{"$f":"COUNT(AC27:HF27)","v":1},null,null,null,null,null,null,null,null,null,null,null,null,null,null,null,null,null,{"$f":"SUM(IF(ISNUMBER(AC27:HF27),AC28:HF28-AC27:HF27+(AC28:HF28<AC27:HF27),))*24","v":13.999999999999998},null,null,null,null,null,null,null,"ОТ"]
[null,null,null,null,null,null,null,null,null,null,null,null,null,null,null,null,null,null,null,null,null,null,null,null,null,null,null,null,1,null,null,null,null,null,"ОТ"]
[null,null,null,null,null,null,null,null,null,null,null,null,null,null,null,null,null,null,null,null,null,null,null,null,null,null,null,null,{"$f":"IFERROR(AC28-AC27,0)","v":"14:00:00"},null,null,null,null,null,{"$f":"IFERROR(AI28-AI27,0)","v":"00:00:00"},null,null,null,null,null,{"$f":"IFERROR(AO28-AO27,0)","v":"00:00:00"},null,null,null,null,null,{"$f":"IFERROR(AU28-AU27,0)","v":"00:00:00"},null,null,null,null,null,{"$f":"IFERROR(BA28-BA27,0)","v":"00:00:00"},null,null,null,null,null,{"$f":"IFERROR(BG28-BG27,0)","v":"00:00:00"},null,null,null,null,null,{"$f":"IFERROR(BM28-BM27,0)","v":"00:00:00"},null,null,null,null,null,{"$f":"IFERROR(BS28-BS27,0)","v":"00:00:00"},null,null,null,null,null,{"$f":"IFERROR(BY28-BY27,0)","v":"00:00:00"},null,null,null,null,null,{"$f":"IFERROR(CE28-CE27,0)","v":"00:00:00"},null,null,null,null,null,{"$f":"IFERROR(CK28-CK27,0)","v":"00:00:00"},null,null,null,null,null,{"$f":"IFERROR(CQ28-CQ27,0)","v":"00:00:00"},null,null,null,null,null,{"$f":"IFERROR(CW28-CW27,0)","v":"00:00:00"},null,null,null,null,null,{"$f":"IFERROR(DC28-DC27,0)","v":"00:00:00"},null,null,null,null,null,{"$f":"IFERROR(DI28-DI27,0)","v":"00:00:00"},null,null,null,null,null,{"$f":"IFERROR(DO28-DO27,0)","v":"00:00:00"},null,null,null,null,null,{"$f":"IFERROR(DU28-DU27,0)","v":"00:00:00"},null,null,null,null,null,{"$f":"IFERROR(EA28-EA27,0)","v":"00:00:00"},null,null,null,null,null,{"$f":"IFERROR(EG28-EG27,0)","v":"00:00:00"},null,null,null,null,null,{"$f":"IFERROR(EM28-EM27,0)","v":"00:00:00"},null,null,null,null,null,{"$f":"IFERROR(ES28-ES27,0)","v":"00:00:00"},null,null,null,null,null,{"$f":"IFERROR(EY28-EY27,0)","v":"00:00:00"},null,null,null,null,null,{"$f":"IFERROR(FE28-FE27,0)","v":"00:00:00"},null,null,null,null,null,{"$f":"IFERROR(FK28-FK27,0)","v":"00:00:00"},null,null,null,null,null,{"$f":"IFERROR(FQ28-FQ27,0)","v":"00:00:00"},null,null,null,null,null,{"$f":"IFERROR(FW28-FW27,0)","v":"00:00:00"},null,null,null,null,null,{"$f":"IFERROR(GC28-GC27,0)","v":"00:00:00"},null,null,null,null,null,{"$f":"IFERROR(GI28-GI27,0)","v":"00:00:00"},null,null,null,null,null,{"$f":"IFERROR(GO28-GO27,0)","v":"00:00:00"},null,null,null,null,null,{"$f":"IFERROR(GU28-GU27,0)","v":"00:00:00"},null,null,null,null,null,{"$f":"IFERROR(HA28-HA27,0)","v":"00:00:00"},null,null,null,null,null,null,null,null,null,null,null,null,null,null,null,null,null,null,null,null,null,null,null,{"$f":"SUM(AC29:HF29)","v":0.58333333333333326}]
[]
[null,null,null,null,null,null,null,null,null,null,null,null,null,null,null,null,null,null,null,null,null,null,null,"НОЧЬ",null,null,null,null,{"$f":"(MIN(AC28,6/24)-MIN(AC27,6/24)+MAX(AC28,22/24)-MAX(AC27,22/24))*24+(AC28<AC27)*8","v":2.0000000000000009},null,null,null,null,null,{"$f":"(MIN(AI28,6/24)-MIN(AI27,6/24)+MAX(AI28,22/24)-MAX(AI27,22/24))*24+(AI28<AI27)*8","v":0},null,null,null,null,null,{"$f":"(MIN(AO28,6/24)-MIN(AO27,6/24)+MAX(AO28,22/24)-MAX(AO27,22/24))*24+(AO28<AO27)*8","v":0},null,null,null,null,null,0,null,null,null,null,null,0,null,null,null,null,null,{"$f":"(MIN(BG28,6/24)-MIN(BG27,6/24)+MAX(BG28,22/24)-MAX(BG27,22/24))*24+(BG28<BG27)*8","v":0},null,null,null,null,null,{"$f":"(MIN(BM28,6/24)-MIN(BM27,6/24)+MAX(BM28,22/24)-MAX(BM27,22/24))*24+(BM28<BM27)*8","v":0},null,null,null,null,null,{"$f":"(MIN(BS28,6/24)-MIN(BS27,6/24)+MAX(BS28,22/24)-MAX(BS27,22/24))*24+(BS28<BS27)*8","v":0},null,null,null,null,null,{"$f":"(MIN(BY28,6/24)-MIN(BY27,6/24)+MAX(BY28,22/24)-MAX(BY27,22/24))*24+(BY28<BY27)*8","v":0},null,null,null,null,null,{"$f":"(MIN(CE28,6/24)-MIN(CE27,6/24)+MAX(CE28,22/24)-MAX(CE27,22/24))*24+(CE28<CE27)*8","v":0},null,null,null,null,null,{"$f":"(MIN(CK28,6/24)-MIN(CK27,6/24)+MAX(CK28,22/24)-MAX(CK27,22/24))*24+(CK28<CK27)*8","v":0},null,null,null,null,null,{"$f":"(MIN(CQ28,6/24)-MIN(CQ27,6/24)+MAX(CQ28,22/24)-MAX(CQ27,22/24))*24+(CQ28<CQ27)*8","v":0},null,null,null,null,null,{"$f":"(MIN(CW28,6/24)-MIN(CW27,6/24)+MAX(CW28,22/24)-MAX(CW27,22/24))*24+(CW28<CW27)*8","v":0},null,null,null,null,null,{"$f":"(MIN(DC28,6/24)-MIN(DC27,6/24)+MAX(DC28,22/24)-MAX(DC27,22/24))*24+(DC28<DC27)*8","v":0},null,null,null,null,null,{"$f":"(MIN(DI28,6/24)-MIN(DI27,6/24)+MAX(DI28,22/24)-MAX(DI27,22/24))*24+(DI28<DI27)*8","v":0},null,null,null,null,null,{"$f":"(MIN(DO28,6/24)-MIN(DO27,6/24)+MAX(DO28,22/24)-MAX(DO27,22/24))*24+(DO28<DO27)*8","v":0},null,null,null,null,null,{"$f":"(MIN(DU28,6/24)-MIN(DU27,6/24)+MAX(DU28,22/24)-MAX(DU27,22/24))*24+(DU28<DU27)*8","v":0},null,null,null,null,null,{"$f":"(MIN(EA28,6/24)-MIN(EA27,6/24)+MAX(EA28,22/24)-MAX(EA27,22/24))*24+(EA28<EA27)*8","v":0},null,null,null,null,null,{"$f":"(MIN(EG28,6/24)-MIN(EG27,6/24)+MAX(EG28,22/24)-MAX(EG27,22/24))*24+(EG28<EG27)*8","v":0},null,null,null,null,null,{"$f":"(MIN(EM28,6/24)-MIN(EM27,6/24)+MAX(EM28,22/24)-MAX(EM27,22/24))*24+(EM28<EM27)*8","v":0},null,null,null,null,null,{"$f":"(MIN(ES28,6/24)-MIN(ES27,6/24)+MAX(ES28,22/24)-MAX(ES27,22/24))*24+(ES28<ES27)*8","v":0},null,null,null,null,null,{"$f":"(MIN(EY28,6/24)-MIN(EY27,6/24)+MAX(EY28,22/24)-MAX(EY27,22/24))*24+(EY28<EY27)*8","v":0},null,null,null,null,null,{"$f":"(MIN(FE28,6/24)-MIN(FE27,6/24)+MAX(FE28,22/24)-MAX(FE27,22/24))*24+(FE28<FE27)*8","v":0},null,null,null,null,null,{"$f":"(MIN(FK28,6/24)-MIN(FK27,6/24)+MAX(FK28,22/24)-MAX(FK27,22/24))*24+(FK28<FK27)*8","v":0},null,null,null,null,null,{"$f":"(MIN(FQ28,6/24)-MIN(FQ27,6/24)+MAX(FQ28,22/24)-MAX(FQ27,22/24))*24+(FQ28<FQ27)*8","v":0},null,null,null,null,null,{"$f":"(MIN(FW28,6/24)-MIN(FW27,6/24)+MAX(FW28,22/24)-MAX(FW27,22/24))*24+(FW28<FW27)*8","v":0},null,null,null,null,null,{"$f":"(MIN(GC28,6/24)-MIN(GC27,6/24)+MAX(GC28,22/24)-MAX(GC27,22/24))*24+(GC28<GC27)*8","v":0},null,null,null,null,null,{"$f":"(MIN(GI28,6/24)-MIN(GI27,6/24)+MAX(GI28,22/24)-MAX(GI27,22/24))*24+(GI28<GI27)*8","v":0},null,null,null,null,null,{"$f":"(MIN(GO28,6/24)-MIN(GO27,6/24)+MAX(GO28,22/24)-MAX(GO27,22/24))*24+(GO28<GO27)*8","v":0},null,null,null,null,null,{"$f":"(MIN(GU28,6/24)-MIN(GU27,6/24)+MAX(GU28,22/24)-MAX(GU27,22/24))*24+(GU28<GU27)*8","v":0},null,null,null,null,null,{"$f":"(MIN(HA28,6/24)-MIN(HA27,6/24)+MAX(HA28,22/24)-MAX(HA27,22/24))*24+(HA28<HA27)*8","v":0},null,null,null,null,null,null,null,null,null,null,null,null,null,null,null,null,null,null,null,null,null,null,null,{"$f":"SUM(AC31:HF31)","v":2.0000000000000009}]
[]
[null,null,null,null,null,null,null,null,null,null,null,null,null,null,null,null,null,null,null,null,null,null,null,"пр","пр",null,null,null,null,null,null,null,null,null,null,null,null,null,null,null,null,null,null,null,null,null,null,null,null,null,null,null,null,null,null,null,null,null,null,null,null,null,null,null,null,null,null,null,null,null,null,null,null,null,null,null,null,null,null,null,null,null,null,null,null,null,null,null,null,null,null,null,null,null,null,null,null,null,null,null,null,null,null,null,null,null,null,null,null,null,null,null,null,null,null,null,null,null,null,null,null,null,null,null,null,null,null,null,null,null,null,null,null,null,null,null,null,null,null,null,null,null,null,null,null,null,null,null,null,null,null,null,null,null,null,null,null,null,null,null,null,null,null,null,null,null,null,null,null,null,null,null,null,null,null,null,null,null,null,null,null,null,null,null,null,null,null,null,null,null,null,null,null,null,null,null,null,null,null,null,null,null,null,null,null,null,null,null,null,null,null,null,null,null,{"$f":"COUNT(AC33:HF33)","v":0},null,null,null,null,null,null,null,null,null,null,null,null,null,null,null,null,null,{"$f":"SUM(AC33:HF33)","v":0}]
[null,null,null,null,null,null,null,null,null,null,null,null,null,null,null,null,null,null,null,null,null,null,null,null,"от",null,null,null,null,null,null,null,null,null,null,null,null,null,null,null,null,null,null,null,null,null,null,null,null,null,null,null,null,null,null,null,null,null,null,null,null,null,null,null,null,null,null,null,null,null,null,null,null,null,null,null,null,null,null,null,null,null,null,null,null,null,null,null,null,null,null,null,null,null,null,null,null,null,null,null,null,null,null,null,null,null,null,null,null,null,null,null,null,null,null,null,null,null,null,null,null,null,null,null,null,null,null,null,null,null,null,null,null,null,null,null,null,null,null,null,null,null,null,null,null,null,null,null,null,null,null,null,null,null,null,null,null,null,null,null,null,null,null,null,null,null,null,null,null,null,null,null,null,null,null,null,null,null,null,null,null,null,null,null,null,null,null,null,null,null,null,null,null,null,null,null,null,null,null,null,null,null,null,null,null,null,null,null,null,null,null,null,null,null,0]
[]
[]
[null,null,null,null,null,"С графиком ознакомлен(а):"]
[]
[null,null,null,null,null,1,null,null,null,null,null,null,null,null,null,null,null,null,null,null,null,null,null,null,null,null,null,null,null,null,null,null,null,null,null,null,null,null,null,null,null,null,null,null,null,null,null,null,null,null,null,null,null,null,null,null,null,null,null,null,null,null,null,"\"___\"______________2020"]
[null,null,null,null,null,2,null,null,null,null,null,null,null,null,null,null,null,null,null,null,null,null,null,null,null,null,null,null,null,null,null,null,null,null,null,null,null,null,null,null,null,null,null,null,null,null,null,null,null,null,null,null,null,null,null,null,null,null,null,null,null,null,null,"\"___\"______________2020"]
[null,null,null,null,null,3,null,null,null,null,null,null,null,null,null,null,null,null,null,null,null,null,null,null,null,null,null,null,null,null,null,null,null,null,null,null,null,null,null,null,null,null,null,null,null,null,null,null,null,null,null,null,null,null,null,null,null,null,null,null,null,null,null,"\"___\"______________2020"]
[null,null,null,null,null,4,null,null,null,null,null,null,null,null,null,null,null,null,null,null,null,null,null,null,null,null,null,null,null,null,null,null,null,null,null,null,null,null,null,null,null,null,null,null,null,null,null,null,null,null,null,null,null,null,null,null,null,null,null,null,null,null,null,"\"___\"______________2020"]
[null,null,null,null,null,5,null,null,null,null,null,null,null,null,null,null,null,null,null,null,null,null,null,null,null,null,null,null,null,null,null,null,null,null,null,null,null,null,null,null,null,null,null,null,null,null,null,null,null,null,null,null,null,null,null,null,null,null,null,null,null,null,null,"\"___\"______________2020"]
[null,null,null,null,null,6,null,null,null,null,null,null,null,null,null,null,null,null,null,null,null,null,null,null,null,null,null,null,null,null,null,null,null,null,null,null,null,null,null,null,null,null,null,null,null,null,null,null,null,null,null,null,null,null,null,null,null,null,null,null,null,null,null,"\"___\"______________2020"]
[null,null,null,null,null,7,null,null,null,null,null,null,null,null,null,null,null,null,null,null,null,null,null,null,null,null,null,null,null,null,null,null,null,null,null,null,null,null,null,null,null,null,null,null,null,null,null,null,null,null,null,null,null,null,null,null,null,null,null,null,null,null,null,"\"___\"______________2020"]
[null,null,null,null,null,8,null,null,null,null,null,null,null,null,null,null,null,null,null,null,null,null,null,null,null,null,null,null,null,null,null,null,null,null,null,null,null,null,null,null,null,null,null,null,null,null,null,null,null,null,null,null,null,null,null,null,null,null,null,null,null,null,null,"\"___\"______________2020"]
[null,null,null,null,null,9,null,null,null,null,null,null,null,null,null,null,null,null,null,null,null,null,null,null,null,null,null,null,null,null,null,null,null,null,null,null,null,null,null,null,null,null,null,null,null,null,null,null,null,null,null,null,null,null,null,null,null,null,null,null,null,null,null,"\"___\"______________2020"]
[null,null,null,null,null,10,null,null,null,null,null,null,null,null,null,null,null,null,null,null,null,null,null,null,null,null,null,null,null,null,null,null,null,null,null,null,null,null,null,null,null,null,null,null,null,null,null,null,null,null,null,null,null,null,null,null,null,null,null,null,null,null,null,"\"___\"______________2020"]
[null,null,null,null,null,11,null,null,null,null,null,null,null,null,null,null,null,null,null,null,null,null,null,null,null,null,null,null,null,null,null,null,null,null,null,null,null,null,null,null,null,null,null,null,null,null,null,null,null,null,null,null,null,null,null,null,null,null,null,null,null,null,null,"\"___\"______________2020"]
[null,null,null,null,null,12,null,null,null,null,null,null,null,null,null,null,null,null,null,null,null,null,null,null,null,null,null,null,null,null,null,null,null,null,null,null,null,null,null,null,null,null,null,null,null,null,null,null,null,null,null,null,null,null,null,null,null,null,null,null,null,null,null,"\"___\"______________2020"]